fUSD/lending_fUSD_20251211
["ID","MTS","AMOUNT","RATE_DAILY","PERIOD"]
[398242803,1765450247925,-151.0,0.00032877,31]
[398242804,1765450247934,-151.0,0.00032877,31]
[398242805,1765450247943,-151.0,0.00032877,31]
[398242806,1765450247953,-260.713414,0.00032877,31]
[398242807,1765450247962,-151.0,0.00032877,31]
[398242808,1765450247972,-151.0,0.00032877,31]
[398242809,1765450247981,-151.0,0.00032877,31]
[398242810,1765450247990,-151.0,0.00032877,31]
[398242811,1765450247999,-151.0,0.00032877,31]
[398242812,1765450248009,-151.0,0.00032877,31]
[398242813,1765450248018,-154.730468,0.00032877,31]
[398242814,1765450248027,-151.0,0.00032877,31]
[398242815,1765450248036,-151.0,0.00032877,31]
[398242816,1765450248046,-151.0,0.00032877,31]
[398242817,1765450248055,-151.0,0.00032877,31]
[398242818,1765450248064,-151.0,0.00032877,31]
[398242819,1765450248074,-151.0,0.00032877,31]
[398242820,1765450248084,-151.0,0.00032877,31]
[398242821,1765450248093,-151.0,0.00032877,31]
[398242822,1765450248102,-151.0,0.00032877,31]
[398242823,1765450248112,-151.0,0.00032877,31]
[398242824,1765450248306,-151.0,0.00032877,31]
[398242825,1765450248316,-151.0,0.00032877,31]
[398242826,1765450248326,-151.0,0.00032877,31]
[398242827,1765450248335,-263.30351232,0.00032877,31]
[398242828,1765450248344,-151.0,0.00032877,31]
[398242829,1765450248354,-151.0,0.00032877,31]
[398242830,1765450248363,-151.0,0.00032877,31]
[398242831,1765450248372,-277.901644,0.00032877,31]
[398242832,1765450248381,-151.0,0.00032877,31]
[398242833,1765450248390,-151.0,0.00032877,31]
[398242834,1765450248399,-151.0,0.00032877,31]
[398242835,1765450248409,-151.0,0.00032877,31]
[398242836,1765450248418,-151.0,0.00032877,31]
[398242837,1765450248427,-151.0,0.00032877,31]
[398242838,1765450248437,-151.0,0.00032877,31]
[398242839,1765450248446,-151.0,0.00032877,31]
[398242840,1765450248455,-151.0,0.00032877,31]
[398242841,1765450248464,-151.0,0.00032877,31]
[398242842,1765450248473,-151.0,0.00032877,31]
[398242843,1765450248483,-151.0,0.00032877,31]
[398242844,1765450248492,-151.0,0.00032877,31]
[398242845,1765450248501,-151.0,0.00032877,31]
[398242846,1765450248510,-151.0,0.00032877,31]
[398242847,1765450248520,-151.0,0.00032877,31]
[398242848,1765450248529,-151.0,0.00032877,31]
[398242849,1765450248538,-151.0,0.00032877,31]
[398242850,1765450248547,-274.27954,0.00032877,31]
[398242851,1765450248557,-151.0,0.00032877,15]
[398242852,1765450248566,-151.0,0.00032877,15]
[398242853,1765450248577,-151.0,0.00032877,15]
[398242854,1765450248586,-151.0,0.00032877,15]
[398242855,1765450248595,-239.7983,0.00032877,15]
[398242856,1765450248604,-151.0,0.00032877,31]
[398242857,1765450248617,-151.0,0.00032877,31]
[398242858,1765450248627,-159.23218,0.00032877,31]
[398242859,1765450248641,-169.027269,0.00032877,31]
[398242860,1765450248652,-151.0,0.00032877,31]
[398242861,1765450248661,-151.0,0.00032877,31]
[398242862,1765450248671,-151.0,0.00032877,31]
[398242863,1765450248680,-151.0,0.00032877,31]
[398242864,1765450248691,-151.0,0.00032877,31]
[398242865,1765450248701,-151.0,0.00032877,31]
[398242866,1765450248710,-154.55524937,0.00032877,31]
[398242867,1765450248719,-151.0,0.00032877,31]
[398242868,1765450248728,-159.003408,0.00032877,31]
[398242869,1765450248737,-151.0,0.00032877,31]
[398242870,1765450248747,-151.0,0.00032877,31]
[398242871,1765450248755,-151.0,0.00032877,31]
[398242872,1765450248765,-151.0,0.00032877,31]
[398242873,1765450248774,-151.0,0.00032877,31]
[398242874,1765450248783,-151.0,0.00032877,31]
[398242875,1765450248792,-151.0,0.00032877,31]
[398242876,1765450248801,-151.0,0.00032877,31]
[398242877,1765450248810,-151.0,0.00032877,31]
[398242878,1765450248819,-151.0,0.00032877,31]
[398242879,1765450248828,-247.866726,0.00032877,31]
[398242880,1765450248837,-151.0,0.00032877,31]
[398242881,1765450248846,-151.0,0.00032877,31]
[398242882,1765450248855,-161.483556,0.00032877,31]
[398242883,1765450248864,-151.0,0.00032877,31]
[398242884,1765450248873,-151.0,0.00032877,31]
[398242885,1765450248882,-151.0,0.00032877,31]
[398242886,1765450248891,-197.609308,0.00032877,31]
[398242887,1765450248899,-151.0,0.00032877,31]
[398242888,1765450248909,-151.0,0.00032877,31]
[398242889,1765450248917,-151.0,0.00032877,31]
[398242890,1765450248926,-151.0,0.00032877,31]
[398242891,1765450248935,-151.0,0.00032877,31]
[398242892,1765450248944,-286.672687,0.00032877,31]
[398242893,1765450248953,-151.0,0.00032877,31]
[398242894,1765450248962,-151.0,0.00032877,31]
[398242895,1765450248971,-151.0,0.00032877,31]
[398242896,1765450248980,-151.0,0.00032877,31]
[398242897,1765450248989,-151.0,0.00032877,31]
[398242898,1765450248998,-151.0,0.00032877,31]
[398242899,1765450249007,-151.0,0.00032877,31]
[398242900,1765450249016,-151.0,0.00032877,31]
[398242901,1765450249026,-160.594706,0.00032877,31]
[398242902,1765450249035,-155.927819,0.00032877,31]
[398242903,1765450249045,-155.927819,0.00032877,31]
[398242904,1765450249054,-155.927819,0.00032877,31]
[398242905,1765450249063,-155.927819,0.00032877,31]
[398242906,1765450249074,-155.927819,0.00032877,31]
[398242907,1765450249083,-155.927819,0.00032877,31]
[398242908,1765450249093,-155.927819,0.00032877,31]
[398242909,1765450249102,-155.927819,0.00032877,31]
[398242910,1765450249112,-155.927819,0.00032877,31]
[398242911,1765450249124,-155.927819,0.00032877,31]
[398242912,1765450249133,-155.927819,0.00032877,31]
[398242913,1765450249143,-155.927819,0.00032877,31]
[398242914,1765450249153,-155.927819,0.00032877,31]
[398242915,1765450249162,-155.927819,0.00032877,31]
[398242916,1765450249175,-155.927819,0.00032877,31]
[398242917,1765450249185,-155.927819,0.00032877,31]
[398242918,1765450249194,-155.927819,0.00032877,31]
[398242919,1765450249204,-155.927819,0.00032877,31]
[398242920,1765450249214,-155.927819,0.00032877,31]
[398242921,1765450249223,-155.927823,0.00032877,31]
[398242922,1765450249232,-151.0,0.00032877,31]
[398242923,1765450249242,-288.586272,0.00032877,31]
[398242924,1765450249252,-829.388001,0.00032877,31]
[398242925,1765450249261,-829.388001,0.00032877,31]
[398242926,1765450249271,-829.388001,0.00032877,31]
[398242927,1765450249280,-829.388001,0.00032877,31]
[398242928,1765450249289,-829.388001,0.00032877,31]
[398242929,1765450249298,-829.388001,0.00032877,31]
[398242930,1765450249307,-829.388001,0.00032877,31]
[398242931,1765450249321,-829.388001,0.00032877,31]
[398242932,1765450249330,-829.388001,0.00032877,31]
[398242933,1765450249339,-829.388001,0.00032877,31]
[398242934,1765450249349,-829.388001,0.00032877,31]
[398242935,1765450249358,-829.388001,0.00032877,31]
[398242936,1765450249366,-829.388001,0.00032877,31]
[398242937,1765450249375,-829.388001,0.00032877,31]
[398242938,1765450249385,-1587.348103,0.00032877,31]
[398242939,1765450249393,-829.388001,0.00032877,31]
[398242940,1765450249402,-1587.348103,0.00032877,31]
[398242941,1765450249411,-829.388001,0.00032877,31]
[398242942,1765450249420,-1587.348103,0.00032877,31]
[398242943,1765450249429,-829.388001,0.00032877,31]
[398242944,1765450249438,-1587.348103,0.00032877,31]
[398242945,1765450249447,-829.388001,0.00032877,31]
[398242946,1765450249456,-1587.348103,0.00032877,31]
[398242947,1765450249467,-829.388001,0.00032877,31]
[398242948,1765450249476,-1587.348103,0.00032877,31]
[398242949,1765450249485,-829.387998,0.00032877,31]
[398242950,1765450249494,-1587.348103,0.00032877,31]
[398242951,1765450249503,-1587.348103,0.00032877,31]
[398242952,1765450249513,-1587.348103,0.00032877,31]
[398242953,1765450249522,-1587.348103,0.00032877,31]
[398242954,1765450249531,-1587.348103,0.00032877,31]
[398242955,1765450249540,-1587.348103,0.00032877,31]
[398242956,1765450249549,-1587.348103,0.00032877,31]
[398242957,1765450249558,-1587.348103,0.00032877,31]
[398242958,1765450249568,-1587.348103,0.00032877,31]
[398242959,1765450249577,-1587.348103,0.00032877,31]
[398242960,1765450249586,-1587.348103,0.00032877,31]
[398242961,1765450249596,-1587.348103,0.00032877,31]
[398242962,1765450249605,-1587.348103,0.00032877,31]
[398242963,1765450249617,-1587.348103,0.00032877,31]
[398242964,1765450249626,-217.277842,0.00032877,31]
[398242965,1765450249635,-217.277842,0.00032877,31]
[398242966,1765450249643,-217.277842,0.00032877,31]
[398242967,1765450249654,-217.277842,0.00032877,31]
[398242968,1765450249664,-217.277842,0.00032877,31]
[398242969,1765450249673,-217.277842,0.00032877,31]
[398242970,1765450249682,-217.277842,0.00032877,31]
[398242971,1765450249691,-217.277842,0.00032877,31]
[398242972,1765450249702,-217.277842,0.00032877,31]
[398242973,1765450249711,-217.277842,0.00032877,31]
[398242974,1765450249719,-217.277842,0.00032877,31]
[398242975,1765450249729,-217.277842,0.00032877,31]
[398242976,1765450249738,-217.277842,0.00032877,31]
[398242977,1765450249747,-151.0,0.00032877,31]
[398242978,1765450249756,-217.277842,0.00032877,31]
[398242979,1765450249765,-151.0,0.00032877,31]
[398242980,1765450249774,-217.277842,0.00032877,31]
[398242981,1765450249783,-151.0,0.00032877,31]
[398242982,1765450249793,-217.277842,0.00032877,31]
[398242983,1765450249802,-179.253806,0.00032877,31]
[398242984,1765450249811,-217.277842,0.00032877,31]
[398242985,1765450249820,-217.277842,0.00032877,31]
[398242986,1765450249829,-217.277842,0.00032877,31]
[398242987,1765450249838,-217.277846,0.00032877,31]
[398242988,1765450249847,-151.0,0.00032877,31]
[398242989,1765450249856,-151.0,0.00032877,31]
[398242990,1765450249865,-151.0,0.00032877,31]
[398242991,1765450249875,-151.0,0.00032877,31]
[398242992,1765450249884,-151.0,0.00032877,31]
[398242993,1765450249893,-151.0,0.00032877,31]
[398242994,1765450249902,-151.0,0.00032877,31]
[398242995,1765450249912,-151.0,0.00032877,31]
[398242996,1765450249921,-263.152533,0.00032877,31]
[398242997,1765450249931,-2048.93,0.000329,14]
[398242998,1765450249940,-160.824,0.00032914,2]
[398242999,1765450249949,-1606.0,0.00032914,2]
[398243000,1765450249958,-3449.0,0.00032914,2]
[398243001,1765450249967,-1324.0,0.00032914,2]
[398243002,1765450249977,-612.729,0.00032914,2]
[398243003,1765450249986,-684.0,0.00032914,2]
[398243004,1765450249995,-1260.0,0.00032914,2]
[398243005,1765450250004,-6518.0,0.00032914,2]
[398243006,1765450250014,-253.0,0.00032914,2]
[398243007,1765450250023,-563.0,0.00032914,2]
[398243008,1765450250033,-324.13,0.00033165,2]
[398243009,1765450250042,-649.61048758,0.00033349,2]
[398243010,1765450250051,-245.77,0.00034246,30]
[398243011,1765450250060,-3837.572,0.00034325,38]
[398243012,1765450250070,-168.708,0.00034325,38]
[398243013,1765450250079,-427.22,0.00034327,30]
[398243014,1765450250088,-960.74,0.00034384,2]
[398243015,1765450250097,-480.43,0.00034384,2]
[398243016,1765450250107,-480.43,0.00034384,2]
[398243017,1765450250116,-480.43,0.00034384,2]
[398243018,1765450250125,-480.43,0.00034384,2]
[398243019,1765450250134,-480.43,0.00034384,2]
[398243020,1765450250143,-211.0,0.00034568,2]
[398243021,1765450250151,-260.0,0.00034568,2]
[398243022,1765450250160,-480.43,0.00035342,2]
[398243023,1765450250169,-178.13,0.00035342,2]
[398243024,1765450250179,-339.82,0.00035342,2]
[398243025,1765450250188,-150.21,0.00035368,2]
[398243026,1765450250197,-150.0,0.00035368,2]
[398243027,1765450250206,-500.0,0.00035616,120]
[398243028,1765450250215,-1532.0,0.00035616,30]
[398243029,1765450250224,-500.0,0.00035753,120]
[398243030,1765450250233,-500.0,0.0003589,120]
[398243031,1765450250242,-1606.0,0.00035914,2]
[398243032,1765450250251,-3449.0,0.00035914,2]
[398243033,1765450250260,-1324.0,0.00035914,2]
[398243034,1765450250269,-611.0,0.00035914,2]
[398243035,1765450250278,-684.0,0.00035914,2]
[398243036,1765450250287,-1260.0,0.00035914,2]
[398243037,1765450250296,-6518.0,0.00035914,2]
[398243038,1765450250305,-253.0,0.00035914,2]
[398243039,1765450250314,-563.0,0.00035914,2]
[398243040,1765450250324,-500.0,0.00036027,120]
[398243041,1765450250333,-1072.11497817,0.00036033,5]
[398243042,1765450250342,-500.0,0.00036164,120]
[398243043,1765450250351,-1794.0,0.000362,7]
[398243044,1765450250359,-1000.0,0.000363,7]
[398243045,1765450250368,-500.0,0.00036301,120]
[398243046,1765450250377,-1406.76,0.00036301,2]
[398243047,1765450250386,-450.8,0.00036301,2]
[398243048,1765450250395,-500.0,0.00036438,120]
[398243049,1765450250405,-500.0,0.00036575,120]
[398243050,1765450250414,-152.0,0.00036606,3]
[398243051,1765450250424,-769.41358619,0.00036684,2]
[398243052,1765450250433,-500.0,0.00036712,120]
[398243053,1765450250442,-500.0,0.00036804,30]
[398243054,1765450250451,-500.0,0.00036804,30]
[398243055,1765450250460,-572.49907613,0.00036804,30]
[398243056,1765450250469,-510.79850095,0.00036804,30]
[398243057,1765450250479,-501.76348649,0.00036804,30]
[398243058,1765450250489,-1400.0,0.00036804,30]
[398243059,1765450250498,-1400.0,0.00036804,30]
[398243060,1765450250507,-1400.0,0.00036804,30]
[398243061,1765450250517,-1400.0,0.00036804,30]
[398243062,1765450250526,-1400.0,0.00036804,30]
[398243063,1765450250536,-1400.0,0.00036804,30]
[398243064,1765450250546,-1400.0,0.00036804,30]
[398243065,1765450250555,-1400.0,0.00036804,30]
[398243066,1765450250564,-1400.0,0.00036804,30]
[398243067,1765450250573,-1400.0,0.00036804,30]
[398243068,1765450250584,-1400.0,0.00036804,30]
[398243069,1765450250594,-1400.0,0.00036804,30]
[398243070,1765450250604,-1400.0,0.00036804,30]
[398243071,1765450250616,-1400.0,0.00036804,30]
[398243072,1765450250626,-1400.0,0.00036804,30]
[398243073,1765450250638,-1400.0,0.00036804,30]
[398243074,1765450250648,-1400.0,0.00036804,30]
[398243075,1765450250659,-1400.0,0.00036804,30]
[398243076,1765450250668,-1400.0,0.00036804,30]
[398243077,1765450250677,-1400.0,0.00036804,30]
[398243078,1765450250687,-1400.0,0.00036804,30]
[398243079,1765450250698,-1400.0,0.00036804,30]
[398243080,1765450250707,-1400.0,0.00036804,30]
[398243081,1765450250716,-1400.0,0.00036804,30]
[398243082,1765450250725,-1400.0,0.00036804,30]
[398243083,1765450250734,-170.65032945,0.00036804,30]
[398243084,1765450250743,-1400.0,0.00036804,30]
[398243085,1765450250752,-1400.0,0.00036804,30]
[398243086,1765450250762,-2177.21694583,0.00036804,30]
[398243087,1765450250771,-500.0,0.00036849,120]
[398243088,1765450250780,-298.55546635,0.00036986,120]
[398243089,1765450250789,-150.0,0.00036986,2]
[398243090,1765450250798,-170.32,0.00036986,2]
[398243091,1765450250808,-150.08,0.00036986,2]
[398243092,1765450250817,-358.77,0.00036986,2]
[398243093,1765450250827,-463.68,0.00036986,2]
[398243094,1765450250836,-559.64,0.00036986,2]
[398243095,1765450250845,-552.86,0.00036986,2]
[398243096,1765450250855,-300.0,0.00036986,2]
[398243097,1765450250864,-170.32,0.00036986,2]
[398243098,1765450250874,-552.86,0.00036986,2]
[398243099,1765450250883,-170.32,0.00036986,2]
[398243100,1765450250892,-463.68,0.00036986,2]
[398243101,1765450250901,-170.12,0.00036986,2]
[398243102,1765450250910,-552.86,0.00036986,2]
[398243103,1765450250919,-552.16,0.00036986,2]
[398243104,1765450250928,-300.0,0.00036986,2]
[398243105,1765450250937,-552.74,0.00036986,2]
[398243106,1765450250947,-1105.2,0.00036986,2]
[398243107,1765450250956,-480.8162296,0.00037,30]
[398243108,1765450250965,-480.43,0.0003726,2]
[398243109,1765450250974,-2048.93,0.000373,14]
[398243110,1765450250984,-866.5,0.00037534,30]
[398243111,1765450250993,-649.61048758,0.00037554,2]
[398243112,1765450251002,-717.38,0.000377,30]
[398243113,1765450251011,-340.5,0.00037808,2]
[398243114,1765450251021,-178.88,0.00037808,2]
[398243115,1765450251030,-178.13,0.00037808,2]
[398243116,1765450251039,-178.13,0.00037808,2]
[398243117,1765450251049,-480.31,0.00038219,2]
[398243118,1765450251058,-960.63,0.00038219,2]
[398243119,1765450251067,-703.56,0.00038219,2]
[398243120,1765450251077,-703.56,0.00038219,2]
[398243121,1765450251087,-703.02,0.00038219,2]
[398243122,1765450251096,-150.0,0.00038356,2]
[398243123,1765450251105,-500.0,0.00038373,5]
[398243124,1765450251114,-500.0,0.00038373,5]
[398243125,1765450251124,-500.0,0.00038373,5]
[398243126,1765450251133,-500.0,0.00038373,5]
[398243127,1765450251143,-150.23922765,0.00038373,5]
[398243128,1765450251283,-500.0,0.00038373,5]
[398243129,1765450251293,-500.0,0.00038373,5]
[398243130,1765450251302,-166.97451496,0.00038373,5]
[398243131,1765450251311,-500.0,0.00038373,5]
[398243132,1765450251320,-500.0,0.00038373,5]
[398243133,1765450251329,-500.0,0.00038373,5]
[398243134,1765450251339,-500.65733064,0.00038373,5]
[398243135,1765450251347,-500.0,0.00038373,5]
[398243136,1765450251356,-500.0,0.00038373,5]
[398243137,1765450251365,-500.0,0.00038373,5]
[398243138,1765450251374,-500.0,0.00038373,5]
[398243139,1765450251383,-500.0,0.00038373,5]
[398243140,1765450251393,-500.0,0.00038373,5]
[398243141,1765450251403,-466.74902463,0.00038373,5]
[398243142,1765450251412,-500.0,0.00038373,5]
[398243143,1765450251422,-500.0,0.00038373,5]
[398243144,1765450251431,-156.29351951,0.00038373,5]
[398243145,1765450251441,-500.0,0.00038373,5]
[398243146,1765450251450,-500.0,0.00038373,5]
[398243147,1765450251460,-500.0,0.00038373,5]
[398243148,1765450251470,-500.0,0.00038373,5]
[398243149,1765450251479,-500.0,0.00038373,5]
[398243150,1765450251488,-500.0,0.00038373,5]
[398243151,1765450251498,-500.0,0.00038373,5]
[398243152,1765450251507,-509.39422802,0.00038373,5]
[398243153,1765450251517,-500.10919303,0.00038373,5]
[398243154,1765450251526,-500.0,0.00038373,5]
[398243155,1765450251535,-500.0,0.00038373,5]
[398243156,1765450251545,-500.0,0.00038373,5]
[398243157,1765450251554,-500.0,0.00038373,5]
[398243158,1765450251563,-160.82894944,0.00038373,2]
[398243159,1765450251573,-500.0,0.00038373,5]
[398243160,1765450251582,-166.65090204,0.00038373,5]
[398243161,1765450251592,-500.43123012,0.00038373,5]
[398243162,1765450251602,-161.36495475,0.00038373,2]
[398243163,1765450251613,-502.33426254,0.00038373,5]
[398243164,1765450251624,-344.14044023,0.00038373,5]
[398243165,1765450251633,-500.0,0.00038373,5]
[398243166,1765450251642,-550.25383571,0.00038373,5]
[398243167,1765450251652,-505.42157002,0.00038373,5]
[398243168,1765450251662,-500.0,0.00038373,5]
[398243169,1765450251671,-219.92273035,0.00038373,5]
[398243170,1765450251681,-500.0,0.00038373,5]
[398243171,1765450251693,-500.0,0.00038373,5]
[398243172,1765450251703,-500.0,0.00038373,5]
[398243173,1765450251713,-500.0,0.00038373,5]
[398243174,1765450251722,-500.38588367,0.00038373,5]
[398243175,1765450251731,-500.25153476,0.00038373,5]
[398243176,1765450251741,-306.56456006,0.00038373,5]
[398243177,1765450251750,-164.5664927,0.00038373,5]
[398243178,1765450251759,-168.30485891,0.00038373,5]
[398243179,1765450251768,-500.0,0.00038373,5]
[398243180,1765450251777,-500.0,0.00038373,5]
[398243181,1765450251786,-500.0,0.00038373,5]
[398243182,1765450251795,-492.89030154,0.00038373,5]
[398243183,1765450251805,-552.86,0.0003863,2]
[398243184,1765450251814,-394.76,0.0003863,2]
[398243185,1765450251823,-150.0,0.0003863,2]
[398243186,1765450251832,-463.81,0.0003863,2]
[398243187,1765450251842,-170.32,0.0003863,2]
[398243188,1765450251851,-552.86,0.0003863,2]
[398243189,1765450251860,-170.32,0.0003863,2]
[398243190,1765450251870,-150.0,0.0003863,2]
[398243191,1765450251879,-463.81,0.0003863,2]
[398243192,1765450251887,-170.32,0.0003863,2]
[398243193,1765450251896,-552.86,0.0003863,2]
[398243194,1765450251905,-170.32,0.0003863,2]
[398243195,1765450251915,-150.0,0.0003863,2]
[398243196,1765450251924,-463.42,0.0003863,2]
[398243197,1765450251933,-170.32,0.0003863,2]
[398243198,1765450251943,-487.28,0.0003863,2]
[398243199,1765450251951,-5900.0,0.000388,120]
[398243200,1765450251961,-1606.0,0.00038914,2]
[398243201,1765450251970,-3449.0,0.00038914,2]
[398243202,1765450251979,-1324.0,0.00038914,2]
[398243203,1765450251988,-611.0,0.00038914,2]
[398243204,1765450251997,-684.0,0.00038914,2]
[398243205,1765450252006,-1260.0,0.00038914,2]
[398243206,1765450252016,-6518.0,0.00038914,2]
[398243207,1765450252025,-253.0,0.00038914,2]
[398243208,1765450252034,-563.0,0.00038914,2]
[398243209,1765450252043,-304.6147564,0.00038921,5]
[398243210,1765450252052,-1000.0,0.00038921,5]
[398243211,1765450252062,-1000.0,0.00038921,5]
[398243212,1765450252070,-471.15936821,0.00038921,5]
[398243213,1765450252079,-1000.0,0.00038921,5]
[398243214,1765450252088,-1000.0,0.00038921,5]
[398243215,1765450252097,-1000.0,0.00038921,5]
[398243216,1765450252107,-1000.0,0.00038921,5]
[398243217,1765450252116,-1105.39877782,0.00038921,5]
[398243218,1765450252125,-582.78041603,0.00038921,5]
[398243219,1765450252134,-334.87790895,0.00038921,5]
[398243220,1765450252143,-169.69750416,0.00038921,5]
[398243221,1765450252153,-1000.0,0.00038921,5]
[398243222,1765450252162,-1000.0,0.00038921,5]
[398243223,1765450252173,-500.0,0.00038921,5]
[398243224,1765450252184,-1000.0,0.00038921,5]
[398243225,1765450252194,-1000.0,0.00038921,5]
[398243226,1765450252204,-1000.0,0.00038921,5]
[398243227,1765450252213,-1000.0,0.00038921,5]
[398243228,1765450252223,-1000.0,0.00038921,5]
[398243229,1765450252233,-1000.0,0.00038921,5]
[398243230,1765450252242,-1000.0,0.00038921,5]
[398243231,1765450252252,-1000.0,0.00038921,5]
[398243232,1765450252262,-501.259204,0.00038921,5]
[398243233,1765450252272,-1000.0,0.00038921,5]
[398243234,1765450252282,-1000.0,0.00038921,5]
[398243235,1765450252292,-1000.0,0.00038921,5]
[398243236,1765450252301,-1000.0,0.00038921,5]
[398243237,1765450252311,-1000.0,0.00038921,5]
[398243238,1765450252320,-610.93801756,0.00038921,5]
[398243239,1765450252330,-1000.0,0.00038921,5]
[398243240,1765450252340,-1000.0,0.00038921,5]
[398243241,1765450252350,-1000.0,0.00038921,5]
[398243242,1765450252360,-1000.0,0.00038921,5]
[398243243,1765450252369,-1000.0,0.00038921,5]
[398243244,1765450252379,-1000.0,0.00038921,5]
[398243245,1765450252388,-1000.0,0.00038921,5]
[398243246,1765450252397,-86213.16687521,0.00039,2]
[398243247,1765450252406,-586.56717402,0.00039,120]
[398243248,1765450252416,-4103.0,0.00039,90]
[398243249,1765450252426,-3608.62436828,0.00039014,2]
[398243250,1765450252700,-856.52563172,0.00039014,2]
[398243251,1765450252713,-166.66,0.00039069,2]
[398243252,1765450252726,-427.22,0.00039162,120]
[398243253,1765450252739,-150.6,0.00039452,2]
[398243254,1765450252754,-150.0,0.00039452,2]
[398243255,1765450252766,-150.0,0.00039452,2]
[398243256,1765450252779,-150.0,0.00039452,2]
[398243257,1765450252792,-150.0,0.00039452,2]
[398243258,1765450252802,-150.38,0.00039452,2]
[398243259,1765450252815,-82.87378148,0.00039468,5]
[398243260,1765450252837,-917.12621852,0.00039468,5]
[398243261,1765450252849,-1250.0,0.00039468,5]
[398243262,1765450252859,-1000.0,0.00039468,5]
[398243263,1765450252870,-1000.0,0.00039468,5]
[398243264,1765450252881,-538.64364705,0.00039468,5]
[398243265,1765450252895,-1000.0,0.00039468,5]
[398243266,1765450252906,-7.84860265,0.00039468,5]
[398243267,1765450253481,-1.7e-07,0.000169,2]
[398243268,1765450253667,-325.06402163,0.00016037,2]
[398243269,1765450253676,-174.93597837,0.00016199,2]
[398243270,1765450253929,-5.21997465,0.00016199,2]
[398243271,1765450253941,-4499.46524195,0.00016199,2]
[398243272,1765450253952,-1097.0,0.00016199,2]
[398243273,1765450253984,-588.93636074,0.00016199,2]
[398243274,1765450254438,-316.43638877,0.00016199,2]
[398243275,1765450255576,-500.0,0.00016199,2]
[398243276,1765450296409,3837.572,0.00015875,2]
[398243277,1765450296548,168.708,0.00015875,2]
[398243280,1765450392328,250.0,0.0001591,2]
[398243281,1765450432653,365.69,0.00013699,2]
[398243451,1765450803278,200.0,0.00015812,2]
[398243454,1765450807482,-500.0,0.00016024,2]
[398243455,1765450807510,-195.0,0.00016061,2]
[398243456,1765450807538,-300.0,0.00016097,2]
[398243457,1765450807566,-1200.0,0.00016097,2]
[398243458,1765450807594,-1004.0,0.00016098,2]
[398243459,1765450807622,-250.0,0.00016098,2]
[398243460,1765450807653,-300.0,0.00016098,2]
[398243461,1765450807689,-300.0,0.00016099,2]
[398243462,1765450807718,-195.0,0.00016099,2]
[398243465,1765450811314,-1666.8688,0.00016099,2]
[398243466,1765450811345,-2195.17000511,0.00016099,2]
[398243468,1765450814477,-2275.93238978,0.00016099,2]
[398243469,1765450814505,-284.46967125,0.00016099,2]
[398243470,1765450814533,-300.0,0.00016118,2]
[398243471,1765450814561,-300.0,0.00016118,2]
[398243472,1765450814588,-300.0,0.00016118,2]
[398243473,1765450814620,-157.35,0.00016123,2]
[398243474,1765450814647,-300.0,0.00016146,2]
[398243475,1765450814675,-300.0,0.00016146,2]
[398243476,1765450814704,-300.0,0.00016146,2]
[398243477,1765450814731,-195.0,0.00016146,2]
[398243480,1765450896475,3070.058,0.00015875,2]